{"text_format":"1","workbook":"xlsx","n_sheets":1,"sheets":["Calc_1"],"not_rendered":{"charts":0,"images":7,"macros":0,"external_links":0,"defined_names":0,"comments":1,"pivot_tables":0},"unopened":[],"bounds":{"document_bytes":16777216,"sheet_cells":100000,"rows_first":2000,"rows_last":500,"rows_between":2000,"halvings":0,"cell_chars":16384,"cell_head_chars":4096},"cells_cut":0,"cells_raw":0,"read":"whole","date_system":"1900"}

{"sheet":"Calc_1","index":0,"n_rows":42,"n_cols":26,"rows_kept":42,"cut":false,"hidden":false,"merged":[]}
[null,null,null,null,null,null,null,null,null,null,null,null,null,null,null,null,null,null,"AD",{"$f":"M36/2","v":15},null,"AC",{"$f":"COS(T3)*T6","v":15.73461701831639},null,"AF",{"$f":"SQRT(W3^2+W5^2)","v":16.479811444365343}]
[null,null,null,null,null,null,null,null,null,null,null,null,null,null,null,null,null,null,"BD",{"$f":"M35/2","v":1},null,"BC",{"$f":"SIN(T3)*T6","v":2.902038470955929},null,"AH",{"$f":"SQRT(W4^2+W6^2)","v":16.079737054649943}]
[null,null,null,null,null,null,null,null,null,null,null,null,null,null,null,null,null,null,"w1",{"$f":"RADIANS((180-M39)/2)","v":0.1823869068334075},null,"x_pkt_F",{"$f":"W1-T5","v":13.534617018316389},null,"JF",{"$f":"Z1-T9","v":1.4798114443653425}]
[null,null,null,null,null,null,null,null,null,null,null,null,null,null,null,null,null,null,"GH",{"$f":"M33/2","v":5.5},null,"x_pkt_H",{"$f":"W1-T4","v":10.23461701831639},null,"HI",{"$f":"Z2-T9","v":1.079737054649943}]
[null,null,null,null,null,null,null,null,null,null,null,null,null,null,null,null,null,null,"EF",{"$f":"M34/2","v":2.2000000000000002},null,"CE",{"$f":"T7+W2","v":9.4020384709559295}]
[null,null,null,null,null,null,null,null,null,null,null,null,null,null,null,null,null,null,"AB",{"$f":"T1+T2","v":16},null,"CG",{"$f":"T8+W2","v":12.402038470955929}]
[null,null,null,null,null,null,null,null,null,null,null,null,null,null,null,null,null,null,"BE",{"$f":"M38","v":6.5}]
[null,null,null,null,null,null,null,null,null,null,null,null,null,null,null,null,null,null,"BG",{"$f":"M37","v":9.5}]
[null,null,null,null,null,null,null,null,null,null,null,null,null,null,null,null,null,null,"AI",{"$f":"M36/2","v":15}]
[null,null,null,null,null,null,null,null,null,null,null,null,null,null,null,null,null,null,"AJ",{"$f":"M36/2","v":15}]
[]
[]
[]
[]
[]
[]
[]
[]
[]
[]
[]
[]
[]
[]
[]
[]
[]
[]
[]
[]
[null,null,null,null,null,null,null,null,null,null,null,null,"input","output"]
[]
[null,null,null,null,null,null,null,null,null,null,null,"D1",11]
[null,null,null,null,null,null,null,null,null,null,null,"D2",4.4000000000000004]
[null,null,null,null,null,null,null,null,null,null,null,"D3",2]
[null,null,null,null,null,null,null,null,null,null,null,"D4",30]
[null,null,null,null,null,null,null,null,null,null,null,"L1",9.5]
[null,null,null,null,null,null,null,null,null,null,null,"L2",6.5]
[null,null,null,null,null,null,null,null,null,null,null,"a1",159.1]
[]
[null,null,null,null,null,null,null,null,null,null,null,"Clearance   c1",null,{"$f":"Z4","v":1.079737054649943}]
[null,null,null,null,null,null,null,null,null,null,null,"Clearance   c2",null,{"$f":"Z3","v":1.4798114443653425}]